bitfinex-derivatives/quotes_ETHF0:USTF0_20251103
["timestamp","ask_amount","ask_price","bid_price","bid_amount"]
[1762197006664,3.70381,3629.5,3629.2,0.49604]
[1762197006867,3.2078,3629.5,3629.4,0.2658]
[1762197007260,0.00282293,3629.5,3629.4,0.6923]
[1762197007871,0.43502293,3629.5,3629.2,3.2078]
[1762197008066,0.43502293,3629.5,3629.3,0.49603]
[1762197008365,0.43502293,3629.5,3629.2,3.70385]
[1762197008573,0.93103293,3629.5,3628.8,0.2658]
[1762197008764,0.93103293,3629.5,3629.2,0.49604]
[1762197008964,0.93103293,3629.5,3629.3,0.49603]
[1762197009472,0.43502293,3629.5,3629.3,0.49603]
[1762197009670,0.93103293,3629.5,3628.8,0.2658]
[1762197009867,0.2051,3629.4,3628.7,3.2078]
[1762197010065,3.2078,3629.2,3628.3,3.2078]
[1762197010466,3.2078,3629.2,3628.7,0.49611]
[1762197010666,0.49608,3629.0,3628.7,0.49611]
[1762197010972,3.2078,3629.2,3628.8,0.7619]
[1762197011175,0.00282293,3629.5,3629.2,0.49604]
[1762197011572,0.00282293,3629.5,3628.8,0.2658]
[1762197011777,0.49609,3628.9,3628.5,0.49614]
[1762197011968,0.49612,3628.7,3628.5,0.49614]
[1762197012173,0.49615,3628.5,3628.3,3.70397]
[1762197012368,0.49615,3628.5,3628.3,3.2078]
[1762197012670,3.2078,3629.2,3628.5,0.49614]
[1762197012968,0.49608,3629.0,3628.7,0.4961]
[1762197013168,1.24016,3629.1,3628.3,3.2078]
[1762197013472,0.49615,3628.5,3628.3,3.70397]
[1762197013672,4.44795,3629.2,3628.4,0.49614]
[1762197013867,0.49615,3628.5,3628.3,3.70397]
[1762197014069,3.2078,3629.2,3628.7,0.49611]
[1762197014264,0.68795298,3629.1,3628.7,0.49611]
[1762197014465,3.2078,3629.2,3628.7,0.49611]
[1762197014668,0.00282293,3629.5,3629.4,0.2474]
[1762197015173,0.49603,3629.4,3629.2,0.49604]
[1762197015365,0.00282293,3629.5,3629.3,0.49603]
[1762197015567,0.49884293,3629.5,3629.3,0.49603]
[1762197015763,0.00282293,3629.5,3629.4,0.2474]
[1762197017366,0.00282293,3629.5,3629.4,0.6536]
[1762197017763,0.00282293,3629.5,3629.4,1.14962]
[1762197018171,3.2078,3630.2,3630.1,0.90212]
[1762197018672,3.2078,3630.2,3629.4,3.4552]
[1762197018879,0.49594,3630.0,3629.4,3.4552]
[1762197019272,0.49798807,3630.0,3629.8,0.49596]
[1762197019671,0.496,3629.6,3629.4,0.74570696]
[1762197020072,3.2078,3629.8,3629.7,0.4062]
[1762197020280,0.00204807,3630.0,3629.9,0.4062]
[1762197020471,0.00204807,3630.0,3629.9,3.614]
[1762197021067,3.70361,3631.0,3630.1,1.23982]
[1762197021272,0.68739731,3630.9,3630.7,0.49584]
[1762197021572,3.2078,3631.0,3630.6,0.2474]
[1762197021774,3.2078,3631.0,3630.8,0.49583]
[1762197022176,3.21084439,3631.0,3630.9,0.4062]
[1762197022370,0.00304439,3631.0,3630.9,3.614]
[1762197024273,0.00304439,3631.0,3630.9,3.2078]
[1762197024578,1.23957,3630.9,3630.0,3.4552]
[1762197024876,3.21084439,3631.0,3629.7,10.042]
[1762197024877,0.49596,3629.9,3629.7,10.53797]
[1762197025177,0.49594,3630.0,3629.8,0.49596]
[1762197025376,3.2078,3630.2,3629.7,0.49598]
[1762197025573,3.70371,3630.2,3629.4,3.45748696]
[1762197025774,0.49598,3629.7,3629.5,0.49601]
[1762197025977,0.49601,3629.5,3629.4,0.00228696]
[1762197026181,0.88591,3629.5,3629.4,0.00228696]
[1762197026583,1.57376411,3629.5,3629.4,0.00228696]
[1762197026781,0.88591,3629.5,3629.4,0.00228696]
[1762197027079,1.57384291,3629.5,3629.4,0.00228696]
[1762197027281,1.57541857,3629.5,3629.4,0.00228696]
[1762197028686,1.57541857,3629.5,3629.0,1.3283]
[1762197028687,0.89226,3629.1,3629.0,1.3283]
[1762197028974,4.78956857,3629.1,3629.0,1.3283]
[1762197029177,6.8888,3629.0,3628.2,0.2212]
[1762197029369,3.2078,3628.3,3627.6,0.2474]
[1762197029572,3.2078,3627.7,3627.6,0.25057152]
[1762197029774,3.89730857,3627.7,3627.6,0.25057152]
[1762197031574,5.40664792,3627.7,3627.2,1.0953]
[1762197031778,0.49634,3627.1,3627.0,0.2364618]
[1762197031982,1.45449883,3627.1,3627.0,0.2364618]
[1762197032678,1.45449883,3627.1,3627.0,0.23880778]
[1762197033181,1.18584857,3627.1,3627.0,0.23880778]
[1762197033973,1.18584857,3627.1,3626.4,0.2474]
[1762197034173,0.49643,3626.5,3626.4,0.2474]
[1762197034480,3.2078,3626.8,3626.4,0.2474]
[1762197034783,3.2078,3626.8,3626.6,0.4964]
[1762197034974,0.4964,3626.7,3626.6,0.00326463]
[1762197035177,3.2078,3626.8,3626.6,0.00326463]
[1762197035775,3.2078,3626.8,3626.7,0.4074]
[1762197036483,3.2078,3627.2,3626.9,0.49636]
[1762197036681,3.2078,3627.2,3627.0,0.2375]
[1762197036882,3.2078,3627.2,3627.0,0.73385]
[1762197037079,3.2078,3627.2,3627.0,0.2375]
[1762197037281,3.2078,3627.2,3627.0,0.73385]
[1762197038074,3.2078,3627.7,3627.1,0.4074]
[1762197038278,3.2078,3627.7,3627.6,0.2375]
[1762197040979,3.2078,3627.7,3627.0,0.2375]
[1762197041182,3.2078,3627.3,3627.0,0.2375]
[1762197041685,3.2078,3627.3,3627.2,0.4074]
[1762197041879,3.2078,3627.3,3627.0,0.2375]
[1762197042781,3.2078,3627.3,3627.0,0.73385]
[1762197043082,3.2078,3627.3,3627.1,0.49634]
[1762197043390,0.49625,3627.8,3627.6,0.2375]
[1762197043581,3.2078,3627.7,3627.6,0.2375]
[1762197049290,3.2078,3627.7,3627.6,0.2375]
[1762197050690,1.24069,3627.6,3627.0,0.2375]
[1762197050890,3.70414,3627.1,3627.0,0.2375]
[1762197051691,0.4964,3626.7,3626.6,0.00326463]
[1762197051892,3.7042,3626.7,3626.6,0.00326463]
[1762197058294,4.39933114,3626.7,3626.6,0.00326463]
[1762197058995,0.49643,3626.5,3626.1,1.0451]
[1762197059290,1.19156114,3626.5,3626.1,1.0451]
[1762197059994,1.19156114,3626.5,3625.8,0.2375]
[1762197059995,0.49651,3625.9,3625.8,0.2375]
[1762197060189,0.49651,3625.9,3625.8,0.2398188]
[1762197060190,13.74031,3625.9,3625.8,0.2398188]
[1762197060488,14.69947388,3625.9,3625.8,0.2398188]
[1762197061090,0.49655,3625.6,3625.5,0.2451]
[1762197061393,0.49659,3625.3,3625.2,0.2451]
[1762197061593,13.74039,3625.3,3625.2,0.2451]
[1762197061797,14.43552114,3625.3,3625.2,0.2451]
[1762197061987,14.43770363,3625.3,3625.2,0.24844999]
[1762197062593,13.94111363,3625.3,3624.7,0.02758887]
[1762197062889,3.90293114,3625.2,3625.1,0.93142]
[1762197063088,3.2078,3625.6,3625.5,1.17646]
[1762197063492,3.2078,3626.0,3625.9,0.4348]
[1762197064092,3.21055643,3626.0,3625.9,0.93465157]
[1762197064692,3.21055643,3626.0,3625.9,0.00334157]
[1762197065091,3.90459084,3626.0,3625.9,0.00334157]
[1762197065292,3.21055643,3626.0,3625.9,0.00334157]
[1762197066602,0.00275643,3626.0,3625.9,0.93463157]
[1762197066798,3.2078,3626.9,3626.5,0.2451]
[1762197066996,3.2078,3626.9,3626.5,0.74151]
[1762197067689,0.49638,3626.7,3626.5,0.2451]
[1762197068094,0.69395649,3626.6,3626.5,0.2451]
[1762197068299,0.49647,3626.1,3626.0,0.2451]
[1762197068602,3.70427,3626.1,3626.0,0.2451]
[1762197070693,0.49648,3626.0,3625.9,0.00334157]
[1762197070893,0.49654,3625.6,3625.0,0.2451]
[1762197071205,3.7044,3625.1,3625.0,0.2451]
[1762197071597,0.49665,3624.8,3624.6,0.2451]
[1762197071902,1.19088404,3624.8,3624.6,0.2451]
[1762197072101,1.19088404,3624.8,3624.0,0.2451]
[1762197072102,1.19088404,3624.8,3624.7,0.03070286]
[1762197072693,0.49663,3624.9,3624.7,0.03070286]
[1762197073002,0.49664,3624.9,3624.7,0.03070286]
[1762197073595,3.2078,3625.6,3625.2,0.2451]
[1762197073799,0.49655,3625.5,3625.3,0.49658]
[1762197074403,0.49657,3625.4,3625.2,0.74169]
[1762197074598,0.49655,3625.5,3625.3,0.49657]
[1762197076599,0.49656,3625.4,3625.2,0.2451]
[1762197076904,0.49656,3625.4,3625.2,0.74169]
[1762197077096,0.49658,3625.3,3625.2,0.2451]
[1762197077492,0.49658,3625.3,3624.7,0.03070286]
[1762197077694,0.49665,3624.8,3624.7,0.03070286]
[1762197077897,3.2078,3624.9,3624.8,0.49665]
[1762197078096,3.70443,3624.9,3624.7,0.03070286]
[1762197078299,0.49665,3624.8,3624.7,0.03070286]
[1762197078805,0.49665,3624.8,3624.7,0.52736286]
[1762197079200,3.2078,3624.9,3624.8,0.93805]
[1762197079393,3.2078,3625.3,3625.0,0.49661]
[1762197079599,0.4966,3625.1,3625.0,0.49661]
[1762197079804,3.2078,3625.3,3625.2,0.2541]
[1762197080504,3.70438,3625.3,3625.2,0.2541]
[1762197080803,4.39970418,3625.3,3625.2,0.2541]
[1762197081101,3.70438,3625.3,3625.2,0.2541]
[1762197081297,0.49665,3624.8,3624.7,0.03070286]
[1762197081502,3.70445,3624.8,3624.7,0.03070286]
[1762197081705,4.40002101,3624.8,3624.7,0.03070286]
[1762197081904,14.43202101,3624.8,3624.7,0.03070286]
[1762197083110,0.49665,3624.8,3624.7,0.03070286]
[1762197083306,3.70445,3624.8,3624.7,0.03070286]
[1762197084206,3.2078,3624.8,3624.7,0.03070286]
[1762197084402,3.2078,3624.8,3624.7,0.96876286]
[1762197085001,0.49661,3625.1,3624.9,0.49662]
[1762197085198,3.2078,3625.2,3625.1,0.4966]
[1762197085402,0.49656,3625.4,3625.2,0.75069]
[1762197085802,0.49656,3625.4,3625.3,0.49658]
[1762197086001,0.49656,3625.4,3625.2,0.2541]
[1762197086204,3.2078,3625.6,3625.4,0.49656]
[1762197086502,2.686383,3626.6,3625.5,0.4414]
[1762197086503,3.70429,3626.0,3625.5,0.4414]
[1762197086709,3.70429,3626.0,3625.8,0.75061]
[1762197087004,3.2078,3626.0,3625.9,0.49649]
[1762197087199,0.49644,3626.3,3626.2,0.49645]
[1762197087398,3.2078,3626.4,3626.2,0.49645]
[1762197087603,3.70423,3626.4,3626.2,0.49645]
[1762197087906,3.2078,3626.4,3626.2,0.49645]
[1762197088107,3.70423,3626.4,3626.1,0.49646]
[1762197088308,3.70423,3626.4,3625.8,0.2541]
[1762197088309,0.49646,3626.2,3625.8,0.2541]
[1762197088509,0.49648,3626.0,3625.8,0.75061]
[1762197088806,0.49648,3626.0,3625.8,0.2541]
[1762197089106,3.2078,3626.4,3625.8,0.2541]
[1762197089308,3.2078,3626.4,3626.2,0.49644]
[1762197089497,3.2078,3626.4,3625.8,0.2541]
[1762197089896,0.49647,3626.2,3626.0,0.49648]
[1762197090096,3.2078,3626.4,3625.8,0.2541]
[1762197090097,3.2078,3626.4,3625.8,3.4619]
[1762197090299,3.2078,3626.4,3626.3,0.91094]
[1762197090504,10.52539,3626.7,3626.5,0.4964]
[1762197090900,0.49641,3626.5,3626.3,0.49643]
[1762197091100,10.029,3626.7,3626.5,0.49641]
[1762197091702,10.52539,3626.7,3626.5,0.49641]
[1762197092402,10.029,3626.7,3626.6,0.4964]
[1762197092598,10.029,3626.7,3626.6,0.9109]
[1762197092808,0.00277697,3626.9,3626.8,0.4145]
[1762197093102,0.00277697,3626.9,3626.3,0.49644]
[1762197093103,0.4964,3626.6,3626.3,0.49644]
[1762197093509,3.21057697,3626.9,3626.2,3.2078]
[1762197093706,3.21057697,3626.9,3626.5,0.2463]
[1762197093905,3.21057697,3626.9,3626.5,0.74271]
[1762197094308,0.4964,3626.6,3626.5,0.2463]
[1762197094507,3.21057697,3626.9,3626.5,0.2463]
[1762197094508,0.49638,3626.8,3626.5,0.2463]
[1762197094710,3.21057697,3626.9,3626.5,0.2463]
[1762197094711,0.4964,3626.6,3626.5,0.2463]
[1762197095309,0.4964,3626.6,3626.5,0.74271]
[1762197095504,0.49639,3626.7,3626.5,1.15721]
[1762197095705,0.4964,3626.6,3626.5,0.6608]
[1762197096310,0.4964,3626.6,3626.5,0.2463]
[1762197097206,0.49649,3626.0,3625.8,0.7506]
[1762197097808,0.49649,3625.9,3625.8,0.2541]
[1762197098211,0.49649,3625.9,3625.8,0.75061]
[1762197098807,0.49649,3625.9,3625.8,0.2541]
[1762197099214,0.49648,3626.0,3625.8,0.2541]
[1762197099514,3.2078,3626.2,3626.0,0.49648]
[1762197100107,3.2078,3626.7,3626.1,0.91097]
[1762197100312,0.4964,3626.6,3626.5,0.2463]
[1762197106311,3.2078,3626.7,3626.5,0.6608]
[1762197106512,0.49913697,3626.9,3626.8,0.382]
[1762197106719,0.49639,3626.7,3626.5,0.2463]
[1762197107016,0.49637,3626.8,3626.7,0.49638]
[1762197107214,0.49913697,3626.9,3626.8,0.49637]
[1762197108114,0.00277697,3626.9,3626.8,0.87837]
[1762197108510,0.00277697,3626.9,3626.5,0.2463]
[1762197108511,0.4964,3626.6,3626.5,0.2463]
[1762197110820,0.4964,3626.6,3626.5,0.6283]
[1762197111512,0.4964,3626.6,3626.5,0.2463]
[1762197113319,3.70419,3626.7,3626.5,0.74271]
[1762197113513,0.00277697,3626.9,3626.6,0.8784]
[1762197113722,0.49639,3626.8,3626.7,0.87839]
[1762197114314,0.49639,3626.8,3626.5,0.2463]
[1762197114315,0.00277697,3626.9,3626.8,0.87837]
[1762197114819,0.00277697,3626.9,3626.5,0.2463]
[1762197115020,0.49913697,3626.9,3626.5,0.2463]
[1762197115221,0.00277697,3626.9,3626.8,0.87837]
[1762197115420,0.00277697,3626.9,3626.8,0.382]
[1762197115421,0.49913697,3626.9,3626.8,0.382]
[1762197115822,0.49637,3626.8,3626.7,0.49637]
[1762197116321,0.4964,3626.6,3626.5,0.2463]
[1762197116520,0.4964,3626.6,3626.5,1.12471]
[1762197116714,3.2078,3626.7,3626.6,0.8784]
[1762197116916,0.00277697,3626.9,3626.8,0.87837]
[1762197120126,0.00277697,3626.9,3626.8,0.382]
[1762197120327,0.49913697,3626.9,3626.8,0.382]
[1762197120623,0.49913697,3626.9,3626.8,1.382]
[1762197120826,0.49913697,3626.9,3626.8,1.0]
[1762197121823,0.49913697,3626.9,3626.8,1.87837]
[1762197122025,0.00277697,3626.9,3626.8,1.87837]
[1762197123825,0.49913697,3626.9,3626.8,1.0]
[1762197125129,0.49913697,3626.9,3626.8,1.382]
[1762197125325,0.00277697,3626.9,3626.8,1.87837]
[1762197125731,0.49913697,3626.9,3626.8,1.0]
[1762197127530,0.49913697,3626.9,3626.8,1.382]
[1762197127724,0.49913697,3626.9,3626.8,1.0]
[1762197127924,0.49913697,3626.9,3626.8,1.382]
[1762197128523,0.00277697,3626.9,3626.8,1.87837]
[1762197129030,3.70406,3627.6,3627.5,0.2235]
[1762197129936,3.70742798,3627.6,3627.5,0.22706907]
[1762197131833,3.21116798,3627.6,3627.5,0.60906907]
[1762197132031,3.70742798,3627.6,3627.5,0.60906907]
[1762197132735,0.00336798,3627.6,3627.5,1.10534907]
[1762197132930,13.2118,3628.1,3628.0,1.10171]
[1762197133125,13.70799,3628.1,3628.0,1.10171]
[1762197133938,13.71149451,3628.1,3628.0,0.6055]
[1762197134233,13.71149451,3628.1,3628.0,0.2235]
[1762197134833,13.21530451,3628.1,3628.0,0.6055]
[1762197135032,13.21530451,3628.1,3628.0,1.10171]
[1762197135234,13.21530451,3628.1,3628.0,0.2235]
[1762197135235,13.71149451,3628.1,3628.0,0.2235]
[1762197141841,0.49626,3627.6,3627.5,0.22706907]
[1762197142139,3.70406,3627.6,3627.5,0.22706907]
[1762197145240,3.70406,3627.6,3627.5,0.57936907]
[1762197145440,4.32022,3627.9,3627.8,0.3523]
[1762197145939,0.49624,3627.8,3627.6,0.49626]
[1762197146137,0.49624,3627.8,3627.7,0.3523]
[1762197147040,4.32023,3627.9,3627.7,0.3523]
[1762197147236,4.32023,3627.9,3627.8,0.3523]
[1762197148430,3.824,3627.9,3627.8,0.84854]
[1762197148630,0.49609,3628.9,3628.6,0.49612]
[1762197148834,1.24005,3629.4,3629.3,0.49603]
[1762197148835,3.2078,3629.4,3629.3,0.49603]
[1762197149035,9.994,3629.6,3629.5,0.1977]
[1762197149337,3.2078,3629.8,3629.5,0.1977]
[1762197149338,3.70377,3629.8,3629.5,0.1977]
[1762197149542,0.49598,3629.7,3629.5,0.1977]
[1762197149838,0.49942963,3629.7,3629.5,0.1977]
[1762197151435,9.991,3629.6,3629.5,0.1977]
[1762197152530,0.49942963,3629.7,3629.5,0.1977]
[1762197152735,9.991,3629.6,3629.5,0.1977]
[1762197153745,0.49942963,3629.7,3629.5,0.5345]
[1762197153936,0.49942963,3629.7,3629.6,0.3368]
[1762197154241,0.00344963,3629.7,3629.6,0.3368]
[1762197154742,0.00344963,3629.7,3629.6,0.83279]
[1762197155143,0.00344963,3629.7,3629.5,0.1977]
[1762197155144,0.49599,3629.6,3629.5,0.1977]
[1762197162145,3.21124963,3629.7,3629.6,0.83279]
[1762197163045,3.2078,3630.1,3630.0,1.03044]
[1762197163243,3.2078,3630.1,3630.0,0.5345]
[1762197163543,3.2078,3630.1,3630.0,0.1977]
[1762197163544,3.70374,3630.1,3630.0,0.1977]
[1762197164042,3.70598726,3630.1,3630.0,0.5345]
[1762197164445,3.21004726,3630.1,3630.0,0.5345]
[1762197164645,3.21004726,3630.1,3630.0,1.03045]
[1762197164842,3.21004726,3630.1,3630.0,0.5345]
[1762197165144,3.70598726,3630.1,3630.0,0.1977]
[1762197165645,3.21004726,3630.1,3630.0,0.5415]
[1762197165846,0.00224726,3630.1,3630.0,1.03745]
[1762197166046,0.00224726,3630.1,3630.0,0.5415]
[1762197166255,3.70598726,3630.1,3630.0,0.5415]
[1762197166549,3.70598726,3630.1,3630.0,0.1977]
[1762197167139,3.70598726,3630.1,3630.0,0.5415]
[1762197169742,3.70598726,3630.1,3630.0,0.1977]
[1762197176938,3.70598726,3630.1,3630.0,0.5415]
[1762197177141,3.21004726,3630.1,3630.0,1.03746]
[1762197177747,0.00224726,3630.1,3630.0,1.03746]
[1762197178252,3.70599726,3630.1,3630.0,0.5415]
[1762197178649,3.70599726,3630.1,3630.0,1.03746]
[1762197179047,3.70599726,3630.1,3630.0,0.5415]
[1762197179353,3.70599726,3630.1,3630.0,0.1977]
[1762197184355,4.40110736,3630.1,3630.0,0.1977]
[1762197188146,0.49602,3629.6,3629.5,0.1977]
[1762197188349,13.67282,3629.6,3629.5,0.1977]
[1762197188952,14.36805739,3629.6,3629.5,0.1977]
[1762197191960,13.67282,3629.6,3629.5,0.5415]
[1762197192748,13.1768,3629.6,3629.5,1.03754]
[1762197194160,3.2078,3629.6,3629.5,1.03754]
[1762197194356,0.496,3629.8,3629.7,0.3438]
[1762197194563,0.00224726,3630.1,3630.0,0.98947]
[1762197194859,3.2078,3630.8,3630.7,0.79978]
[1762197195656,3.21097677,3630.8,3630.7,0.80290652]
[1762197196457,0.00317677,3630.8,3630.7,0.80290652]
[1762197196665,3.2078,3631.2,3631.1,0.79975]
[1762197197550,3.21002067,3631.2,3631.1,0.79975]
[1762197197756,3.21002067,3631.2,3631.1,0.29989579]
[1762197198363,3.21002067,3631.2,3631.0,0.1896]
[1762197199065,3.21002067,3631.2,3631.1,0.79975]
[1762197202366,0.00222067,3631.2,3631.1,0.79975]
[1762197203270,3.2078,3631.8,3631.7,0.79966]
[1762197203860,3.70355,3631.8,3631.7,0.3039]
[1762197204066,3.70355,3631.8,3631.5,0.1896]
[1762197204067,0.49578,3631.6,3631.5,0.4935]
[1762197204268,3.2078,3631.8,3631.7,0.3039]
[1762197204564,3.21065104,3631.8,3631.7,0.79966]
[1762197204766,3.70640104,3631.8,3631.7,0.79966]
[1762197204966,3.70640104,3631.8,3631.7,0.3039]
[1762197205866,0.49578,3631.6,3631.5,0.4935]
[1762197206267,0.49578,3631.6,3631.5,0.1896]
[1762197207066,0.49578,3631.6,3631.5,0.4935]
[1762197207471,0.49578,3631.6,3631.5,1.4935]
[1762197207672,3.21065104,3631.8,3631.5,1.1896]
[1762197207862,3.70641104,3631.8,3631.7,0.3185]
[1762197209170,3.21065104,3631.8,3631.7,0.3185]
[1762197209772,3.21065104,3631.8,3631.7,0.81426]
[1762197210465,0.00285104,3631.8,3631.7,0.81426]
[1762197212176,3.2078,3632.2,3632.1,0.81421]
[1762197212567,3.7035,3632.2,3632.1,0.3185]
[1762197212767,0.49571,3632.1,3632.0,0.1757]
[1762197213277,0.00235674,3632.1,3632.0,0.98992]
[1762197215776,1.23881,3633.5,3632.5,0.98984]
[1762197215777,3.2078,3632.6,3632.5,0.98984]
[1762197216882,0.00292365,3632.6,3632.5,0.98984]
[1762197218879,0.49855365,3632.6,3632.5,0.4942]
[1762197219078,0.00292365,3632.6,3632.5,0.98984]
[1762197221586,0.00292365,3632.6,3632.5,1.98984]
[1762197222486,2.365e-05,3632.6,3632.5,1.98984]
[1762197226283,3.2078,3633.5,3633.4,0.2824]
[1762197226793,3.2078,3633.5,3633.4,0.77792]
[1762197227192,0.00240909,3633.5,3633.4,0.78032497]
[1762197230194,3.21020909,3633.5,3633.4,0.78032497]
[1762197230587,3.70571909,3633.5,3633.4,0.28480497]
[1762197230996,3.70571909,3633.5,3633.4,0.78032497]
[1762197231496,3.70571909,3633.5,3633.4,0.28480497]
[1762197231891,3.70571909,3633.5,3633.4,0.78032497]
[1762197232086,3.70571909,3633.5,3633.4,0.28480497]
[1762197233195,3.70571909,3633.5,3633.4,0.00240497]
[1762197234786,0.49791909,3633.5,3633.4,0.00240497]
[1762197235094,3.70571909,3633.5,3633.4,0.00240497]
[1762197235498,4.39649757,3633.5,3633.4,0.00240497]
[1762197235701,0.49556,3633.1,3633.0,0.07060824]
[1762197235894,3.97403739,3633.1,3633.0,0.07060824]
[1762197236094,4.39413848,3633.1,3633.0,0.07060824]
[1762197236293,4.66488881,3633.1,3633.0,0.07060824]
[1762197236695,4.66488881,3633.1,3633.0,0.07335196]
[1762197237693,4.66502133,3633.1,3633.0,0.07335196]
[1762197237992,4.39413848,3633.1,3633.0,0.07335196]
[1762197239892,4.66525989,3633.1,3633.0,0.07335196]
[1762197240799,4.39413848,3633.1,3633.0,0.07335196]
[1762197240999,3.89857848,3633.1,3633.0,0.85133196]
[1762197241299,3.2078,3633.1,3633.0,0.85133196]
[1762197241801,0.00240909,3633.5,3633.4,0.77792]
[1762197241996,0.69690124,3633.5,3633.4,0.77792]
[1762197242300,0.69690124,3633.5,3633.4,0.2824]
[1762197242501,0.69690124,3633.5,3633.4,0.77792]
[1762197242996,1.19241124,3633.5,3633.4,0.77792]
[1762197243201,0.69690124,3633.5,3633.4,0.77792]
[1762197244893,1.19241124,3633.5,3633.4,0.77792]
[1762197245300,0.69690124,3633.5,3633.4,0.77792]
[1762197245804,0.00240909,3633.5,3633.4,0.77792]
[1762197248101,0.49791909,3633.5,3633.4,0.77792]
[1762197249103,0.00240909,3633.5,3633.4,0.77792]
[1762197251209,0.49791909,3633.5,3633.4,0.77792]
[1762197252004,0.00240909,3633.5,3633.4,0.77792]
[1762197260708,6.88320909,3633.5,3633.0,0.07335196]
[1762197260915,3.2078,3633.1,3633.0,0.07335196]
[1762197261415,3.9030882,3633.1,3633.0,0.1646]
[1762197262317,4.17399952,3633.1,3633.0,0.16776217]
[1762197263020,3.9030882,3633.1,3633.0,0.16776217]
[1762197265117,3.9030882,3633.1,3633.0,0.44026217]
[1762197265316,3.2078,3633.1,3633.0,0.16776217]
[1762197265513,3.90338233,3633.1,3633.0,0.16776217]
[1762197266220,3.90332861,3633.1,3633.0,0.16776217]
[1762197267413,3.90969112,3633.1,3633.0,0.44026217]
[1762197267717,3.2078,3633.1,3633.0,0.44026217]
[1762197267917,3.9096786,3633.1,3633.0,0.44026217]
[1762197268419,3.2078,3633.1,3633.0,0.44026217]
[1762197268608,3.2078,3633.1,3633.0,0.93583217]
[1762197268808,3.01884987,3633.1,3633.0,0.93583217]
[1762197269013,3.01884987,3633.1,3633.0,1.93583217]
[1762197269321,0.00240909,3633.5,3633.4,0.75672]
[1762197270517,0.00240909,3633.5,3633.1,0.2612]
[1762197270719,3.70334,3633.2,3633.1,0.2612]
[1762197273312,3.2078,3633.2,3633.1,0.75676]
[1762197273711,3.70335,3633.2,3633.1,0.2612]
[1762197274111,3.2078,3633.2,3633.1,0.75676]
[1762197274817,3.70335,3633.2,3633.1,0.2612]
[1762197275018,3.2078,3633.2,3633.1,0.75676]
[1762197275214,3.70335,3633.2,3633.1,0.75676]
[1762197276125,3.2078,3633.2,3633.1,0.75676]
[1762197276324,3.2078,3633.2,3633.1,1.75676]
[1762197276726,0.00240909,3633.5,3633.4,0.75672]
[1762197277026,0.49791909,3633.5,3633.4,0.75672]
[1762197277226,0.00240909,3633.5,3633.4,0.75672]
[1762197278119,0.49791909,3633.5,3633.4,0.75672]
[1762197278827,0.49791909,3633.5,3633.4,0.2612]
[1762197279524,0.49791909,3633.5,3633.4,0.75672]
[1762197280828,0.49791909,3633.5,3633.4,0.2612]
[1762197281028,0.49791909,3633.5,3633.4,0.75672]
[1762197282332,0.49791909,3633.5,3633.4,0.2612]
[1762197282529,0.49791909,3633.5,3633.4,1.2612]
[1762197283633,0.49791909,3633.5,3633.4,1.0]
[1762197284023,1.20023786,3633.5,3633.4,1.0]
[1762197284625,0.49791909,3633.5,3633.4,1.0]
[1762197286438,1.20020131,3633.5,3633.4,1.0]
[1762197289535,0.70469131,3633.5,3633.4,1.2446]
[1762197289737,0.70469131,3633.5,3633.4,1.74013]
[1762197289934,0.49792909,3633.5,3633.4,1.2446]
[1762197290440,0.00240909,3633.5,3633.4,1.74013]
[1762197290842,0.49792909,3633.5,3633.4,1.74013]
[1762197291234,0.00240909,3633.5,3633.4,1.74013]
[1762197291937,0.49792909,3633.5,3633.4,1.2446]
[1762197296140,1.20062693,3633.5,3633.4,1.2446]
[1762197296449,1.20081835,3633.5,3633.4,1.2446]
[1762197297647,1.19816251,3633.5,3633.4,1.2446]
[1762197298751,1.46970746,3633.5,3633.4,1.0]
[1762197299952,1.19816251,3633.5,3633.4,1.0]
[1762197300349,0.49557,3633.1,3633.0,0.16776217]
[1762197300554,0.49564,3632.6,3632.5,0.4203]
[1762197300750,3.70344,3632.6,3632.5,0.4203]
[1762197301253,3.2078,3632.6,3632.5,0.4203]
[1762197301549,3.2078,3632.6,3632.5,0.91925357]
[1762197301746,3.4198,3633.0,3632.5,0.17900357]
[1762197301950,3.70344,3632.6,3632.5,0.42360357]
[1762197302153,3.70344,3632.6,3632.5,0.17900357]
[1762197302154,3.91544,3632.6,3632.5,0.17900357]
[1762197302352,3.91544,3632.6,3632.5,0.00330357]
[1762197302657,3.91544,3632.6,3632.5,0.14740357]
[1762197303449,3.91544,3632.6,3632.5,0.00330357]
[1762197303648,3.91544,3632.6,3632.5,0.14740357]
[1762197304153,3.70344,3632.6,3632.5,0.39200357]
[1762197305355,3.91544,3632.6,3632.5,0.14740357]
[1762197305556,3.70344,3632.6,3632.5,0.39200357]
[1762197306549,3.2078,3632.6,3632.5,0.39200357]
[1762197306750,3.70343,3632.6,3632.5,0.39200357]
[1762197308458,3.2078,3632.6,3632.5,0.88764357]
[1762197309353,3.2078,3633.0,3632.9,0.49558]
[1762197309654,0.00240909,3633.5,3633.4,0.74012]
[1762197309954,0.00240909,3633.5,3633.4,0.2446]
[1762197309955,4.08081909,3633.5,3633.4,0.2446]
[1762197310548,3.58530909,3633.5,3632.6,3.2078]
[1762197310758,0.72883,3632.6,3632.5,0.00330357]
[1762197311955,0.49561,3632.8,3632.5,0.00330357]
[1762197312153,3.2078,3632.9,3632.8,0.2446]
[1762197312352,3.70339,3632.9,3632.8,0.2446]
[1762197312750,3.70339,3632.9,3632.8,0.7402]
[1762197312961,3.70336,3633.2,3633.1,0.2446]
[1762197314160,3.93656,3633.2,3633.1,0.2446]
[1762197314963,3.97196,3633.2,3633.1,0.2446]
[1762197315258,1.23884,3633.4,3633.1,0.2446]
[1762197315259,0.00240909,3633.5,3633.4,0.75622]
[1762197316158,0.49791909,3633.5,3633.4,0.2607]
[1762197316957,0.49556,3633.1,3633.0,1.8298]
[1762197317156,0.49556,3633.1,3633.0,2.32538]